bitfinex/quotes_SOLUSD_20220117
["timestamp","ask_amount","ask_price","bid_price","bid_amount"]
[1642455756117,46.2032861,137.62,137.48,26.04927855]
[1642455756318,10.9054,137.6,137.49,49.12429129]
[1642455756518,10.9054,137.6,137.5,71.89]
[1642455756920,10.9054,137.6,137.5,72.15]
[1642455757123,10.9054,137.6,137.49,48.87429129]
[1642455757320,16.9054,137.6,137.49,48.87429129]
[1642455758019,16.9054,137.6,137.5,0.25]
[1642455758221,16.9054,137.6,137.49,50.72176984]
[1642455758420,10.9054,137.6,137.49,67.62716984]
[1642455758622,10.9054,137.6,137.5,0.25]
[1642455759222,12.0518861,137.62,137.51,1.58993243]
[1642455759421,1.1479861,137.62,137.54,10.9016]
[1642455759622,1.1479861,137.62,137.54,34.0572]
[1642455759843,1.1479861,137.62,137.54,34.3172]
[1642455760245,1.1479861,137.62,137.55,44.13383755]
[1642455760448,1.1479861,137.62,137.56,71.89]
[1642455760847,36.3334,137.7,137.56,71.89]
[1642455761045,8.7,137.7,137.57,1.83993243]
[1642455761246,8.7,137.7,137.57,16.53993243]
[1642455761447,8.7,137.7,137.58,73.47993243]
[1642455761845,35.14460292,137.69,137.59,43.07097036]
[1642455762247,35.14460292,137.69,137.59,54.22837036]
[1642455762448,29.29308596,137.72,137.6,0.25]
[1642455762647,29.29308596,137.72,137.62,71.89]
[1642455762847,6.0,137.72,137.62,80.85]
[1642455763047,35.19443182,137.76,137.62,80.85]
[1642455763246,41.19443182,137.76,137.63,0.25]
[1642455763449,42.85195118,137.75,137.63,41.27502275]
[1642455763648,53.74525118,137.75,137.64,10.8938]
[1642455763948,53.74525118,137.75,137.64,12.48373243]
[1642455764149,53.74525118,137.75,137.64,12.74373243]
[1642455764852,53.74525118,137.75,137.62,8.7]
[1642455765150,10.45619958,137.74,137.61,72.9331]
[1642455765350,10.8993,137.71,137.59,8.7]
[1642455765552,16.9083,137.71,137.57,8.7]
[1642455765751,8.7,137.7,137.57,8.7]
[1642455765953,53.44194243,137.7,137.57,54.21006754]
[1642455766351,70.33904243,137.7,137.57,55.79999997]
[1642455766752,70.33904243,137.7,137.58,72.14]
[1642455767152,70.33904243,137.7,137.58,72.4]
[1642455767351,61.63904243,137.7,137.6,71.89]
[1642455767553,61.63904243,137.7,137.61,36.84332867]
[1642455769356,6.0,137.7,137.61,47.99962867]
[1642455769556,10.8955,137.72,137.61,56.69962867]
[1642455769757,6.0,137.72,137.62,0.25]
[1642455769955,6.0,137.72,137.62,8.95]
[1642455770159,36.3144,137.77,137.62,10.53993243]
[1642455770357,81.50039559,137.77,137.62,64.16013243]
[1642455770559,81.50039559,137.77,137.63,71.89]
[1642455770760,81.50039559,137.77,137.64,52.87216826]
[1642455770958,8.28704579,137.76,137.64,52.62216826]
[1642455771166,8.28704579,137.76,137.64,52.88216826]
[1642455771657,19.17954579,137.76,137.65,10.893]
[1642455772261,19.17954579,137.76,137.62,55.6262]
[1642455772460,10.45619958,137.75,137.62,55.6262]
[1642455772659,10.45619958,137.75,137.62,46.9262]
[1642455772859,10.8977,137.72,137.62,46.9262]
[1642455773261,41.81539424,137.71,137.63,45.0393063]
[1642455773762,41.81539424,137.71,137.62,46.9262]
[1642455774063,10.8974,137.69,137.62,46.9262]
[1642455774861,41.69623042,137.68,137.62,46.9262]
[1642455775061,10.899,137.67,137.56,8.7]
[1642455775263,10.899,137.67,137.49,24.4129]
[1642455775463,10.899,137.67,137.53,47.9036]
[1642455775965,10.899,137.67,137.54,38.20950128]
[1642455776162,10.899,137.67,137.54,49.11180128]
[1642455776364,10.899,137.67,137.55,71.89]
[1642455776566,10.899,137.67,137.55,72.14]
[1642455776965,10.899,137.67,137.56,1.58993243]
[1642455777164,10.899,137.67,137.56,12.49003243]
[1642455777364,10.899,137.67,137.57,38.3823139]
[1642455777564,16.899,137.67,137.57,38.3823139]
[1642455777864,16.899,137.67,137.57,110.2723139]
[1642455778063,16.899,137.67,137.55,23.1648]
[1642455778264,34.107,137.67,137.55,23.1648]
[1642455779069,34.107,137.67,137.56,47.32704248]
[1642455779263,34.107,137.67,137.56,119.21704248]
[1642455779665,34.107,137.67,137.56,47.32704248]
[1642455780468,25.599,137.67,137.56,47.32704248]
[1642455780667,25.599,137.67,137.56,47.58704248]
[1642455780867,25.599,137.67,137.56,47.32704248]
[1642455782067,25.599,137.67,137.56,58.22794248]
[1642455785069,25.599,137.67,137.55,23.1648]
[1642455785871,27.35519958,137.67,137.55,23.1648]
[1642455786098,71.89,137.66,137.53,23.0802]
[1642455786271,10.9051,137.63,137.53,23.0802]
[1642455786471,48.39269142,137.62,137.53,23.0802]
[1642455786676,10.9051,137.63,137.53,23.0802]
[1642455786873,8.29272953,137.66,137.53,23.0802]
[1642455787074,8.29272953,137.66,137.54,23.0943]
[1642455787277,10.9003,137.64,137.57,10.9003]
[1642455787575,45.13444289,137.63,137.56,46.05508516]
[1642455787974,45.13444289,137.63,137.54,23.0943]
[1642455788375,56.03624289,137.63,137.54,23.0943]
[1642455789074,56.03624289,137.63,137.55,43.13483859]
[1642455789277,16.9018,137.63,137.55,43.13483859]
[1642455789677,16.9018,137.63,137.55,43.39483859]
[1642455789875,16.9018,137.63,137.55,43.13483859]
[1642455790275,16.9018,137.63,137.55,43.39483859]
[1642455790676,16.9018,137.63,137.56,0.25]
[1642455791783,16.9018,137.63,137.56,72.14]
[1642455791979,10.9002,137.64,137.57,10.9006]
[1642455792181,81.7549,137.72,137.57,19.6006]
[1642455792382,8.7,137.72,137.58,47.3214]
[1642455792579,8.7,137.72,137.58,56.0214]
[1642455792780,8.7,137.72,137.59,117.32097082]
[1642455792982,44.15676457,137.73,137.6,8.7]
[1642455793180,6.21783597,137.68,137.6,8.95]
[1642455793381,6.21783597,137.68,137.6,9.21]
[1642455793780,6.21783597,137.68,137.6,15.21]
[1642455794184,6.21783597,137.72,137.6,15.21]
[1642455794585,6.21783597,137.72,137.63,48.54175885]
[1642455794786,6.21783597,137.72,137.63,120.43175885]
[1642455795286,6.21783597,137.72,137.64,0.25]
[1642455795687,6.21783597,137.72,137.64,10.8947]
[1642455795887,6.21783597,137.72,137.63,57.24175885]
[1642455796087,34.84286747,137.71,137.63,57.24175885]
[1642455796289,40.84286747,137.71,137.63,57.24175885]
[1642455796489,40.84286747,137.71,137.61,22.7545]
[1642455796691,10.898,137.69,137.61,22.7545]
[1642455796893,17.058,137.69,137.61,22.7545]
[1642455797292,17.058,137.69,137.58,35.2582]
[1642455797493,47.11476647,137.68,137.59,48.83362385]
[1642455798294,10.9,137.66,137.59,48.83362385]
[1642455798696,39.54374533,137.65,137.59,48.83362385]
[1642455800397,63.30654533,137.65,137.58,24.3584]
[1642455800597,63.30654533,137.65,137.52,8.7]
[1642455800798,72.00654533,137.65,137.52,6.0]
[1642455801130,72.00654533,137.65,137.5,8.7]
[1642455801332,72.00654533,137.65,137.51,49.47168255]
[1642455801533,72.00654533,137.65,137.51,60.37688255]
[1642455802034,72.00654533,137.65,137.51,107.39398255]
[1642455802431,72.00654533,137.65,137.51,96.48878255]
[1642455803934,32.4628,137.65,137.51,47.0171]
[1642455804136,44.72539473,137.64,137.52,49.54582127]
[1642455804434,10.9058,137.61,137.52,39.83393779]
[1642455804636,45.95510526,137.6,137.52,37.57469943]
[1642455805235,51.95510526,137.6,137.52,37.57469943]
[1642455805436,2.07340495,137.57,137.52,37.57469943]
[1642455805835,40.52674207,137.57,137.52,37.57469943]
[1642455806538,2.07340495,137.57,137.52,37.57469943]
[1642455807143,7.47540495,137.57,137.52,37.57469943]
[1642455807636,18.38110495,137.57,137.52,37.57469943]
[1642455807835,2.07340495,137.57,137.52,37.57469943]
[1642455808036,2.07340495,137.57,137.52,39.42463186]
[1642455808242,2.07340495,137.57,137.53,71.89]
[1642455808642,4.95e-06,137.57,137.54,0.25]
[1642455808839,4.95e-06,137.57,137.54,8.7]
[1642455809038,6.21783597,137.63,137.54,19.602]
[1642455809238,6.21783597,137.65,137.54,19.862]
[1642455809642,39.82139227,137.64,137.55,38.08165292]
[1642455809838,39.82139227,137.64,137.55,109.97165292]
[1642455810238,10.9021,137.62,137.55,120.87375292]
[1642455811041,10.9021,137.62,137.52,56.0481]
[1642455811242,16.2951,137.62,137.52,56.0481]
[1642455811642,22.2951,137.62,137.52,47.3481]
[1642455812143,39.22726658,137.61,137.52,89.09973478]
[1642455812344,34.76684309,137.58,137.52,89.09973478]
[1642455813347,34.76684309,137.58,137.52,47.3481]
[1642455813546,53.45894309,137.58,137.52,47.3481]
[1642455815154,59.45894309,137.58,137.52,47.3481]
[1642455818459,59.45894309,137.58,137.47,31.6235]
[1642455818660,8.7,137.57,137.46,47.245]
[1642455818959,10.9105,137.54,137.46,47.245]
[1642455819158,18.2785,137.54,137.46,47.245]
[1642455819358,37.48438907,137.53,137.46,47.245]
[1642455819758,10.9107,137.51,137.45,48.72239034]
[1642455819988,18.1157,137.51,137.45,48.72239034]
[1642455820187,41.32506214,137.5,137.4,14.60739602]
[1642455820583,41.32506214,137.5,137.4,5.90739602]
[1642455820985,41.32506214,137.5,137.39,22.5364]
[1642455821183,47.32506214,137.5,137.41,37.99790925]
[1642455821384,47.32506214,137.5,137.41,38.25790925]
[1642455821582,10.9121,137.49,137.41,38.25790925]
[1642455821783,10.9121,137.49,137.41,37.75790925]
[1642455822387,10.9121,137.49,137.42,71.89]
[1642455822588,10.9121,137.49,137.42,72.14]
[1642455822789,36.3729,137.53,137.42,78.4]
[1642455822988,10.9113,137.5,137.42,72.4]
[1642455823184,10.9113,137.5,137.42,72.15]
[1642455824587,10.9113,137.5,137.42,82.8016]
[1642455825787,10.9113,137.5,137.42,83.0616]
[1642455826388,16.9113,137.5,137.42,83.0616]
[1642455826592,16.9113,137.5,137.42,11.1716]
[1642455826792,47.64974801,137.49,137.41,72.77830925]
[1642455826990,47.64974801,137.49,137.41,24.3682]
[1642455827992,47.64974801,137.49,137.42,35.13260262]
[1642455828595,47.64974801,137.49,137.41,24.3682]
[1642455829493,56.34974801,137.49,137.38,4.00967434]
[1642455829694,73.64619958,137.48,137.38,4.00967434]
[1642455829892,10.9182,137.45,137.38,4.00967434]
[1642455830094,10.9182,137.45,137.37,40.86536038]
[1642455830095,10.9182,137.45,137.37,44.87503472]
[1642455830894,10.9182,137.45,137.37,43.87503472]
[1642455831494,10.9182,137.45,137.37,39.86536038]
[1642455832094,10.9182,137.45,137.36,23.3084]
[1642455832294,17.4792,137.45,137.36,23.3084]
[1642455832694,26.1792,137.45,137.36,23.3084]
[1642455832896,26.1792,137.45,137.34,27.99747434]
[1642455833095,27.93539958,137.45,137.34,27.99747434]
[1642455833700,27.93539958,137.45,137.35,37.57969615]
[1642455834496,21.37439958,137.45,137.35,37.57969615]
[1642455835296,71.89,137.44,137.33,0.10660946]
[1642455835499,10.9225,137.41,137.33,0.10660946]
[1642455836299,41.44123521,137.4,137.33,44.03622396]
[1642455836499,8.7,137.43,137.33,44.03622396]
[1642455837100,14.7,137.43,137.33,44.03622396]
[1642455837302,14.7,137.43,137.33,0.10660946]
[1642455837501,10.9223,137.38,137.33,0.10660946]
[1642455837701,19.6223,137.38,137.33,0.10660946]
[1642455838402,57.4101641,137.38,137.33,0.10660946]
[1642455838802,19.6223,137.38,137.33,0.10660946]
[1642455840001,19.6223,137.38,137.32,0.02867167]
[1642455840202,47.16271616,137.37,137.32,0.02867167]
[1642455840404,19.6275,137.36,137.32,0.02867167]
[1642455840806,25.6275,137.36,137.32,0.02867167]
[1642455841103,25.6275,137.36,137.29,6.17142857]
[1642455841310,35.83269958,137.36,137.29,6.17142857]
[1642455842312,71.89,137.35,137.29,6.17142857]
[1642455842512,75.6298,137.34,137.25,4.00967434]
[1642455842713,131.0,137.32,137.09,294.2233]
[1642455842915,80.59,137.31,137.11,521.45401319]
[1642455843114,117.44,137.31,137.11,521.45401319]
[1642455843315,34.17720095,137.3,137.17,47.70761968]
[1642455843517,8.7,137.29,137.17,47.70761968]
[1642455843813,8.7,137.29,137.14,8.44453197]
[1642455843814,10.9368,137.27,137.14,7.94453197]
[1642455844012,8.7,137.26,137.14,7.94453197]
[1642455844215,8.7,137.25,137.14,7.94453197]
[1642455844413,8.7,137.24,137.14,7.94453197]
[1642455844613,10.9379,137.23,137.15,44.10184549]
[1642455844814,19.6379,137.23,137.15,43.60184549]
[1642455845118,19.6379,137.23,137.19,0.98698445]
[1642455845315,25.6379,137.23,137.14,7.94453197]
[1642455845514,25.6379,137.23,137.11,521.45401319]
[1642455845717,25.6379,137.23,137.12,4.36875163]
[1642455846137,19.6379,137.23,137.12,4.36875163]
[1642455846337,10.9323,137.24,137.12,4.36875163]
[1642455846537,8.7,137.26,137.12,4.36875163]
[1642455846737,45.1461,137.26,137.12,15.30515163]
[1642455846936,46.25547387,137.25,137.13,36.65875906]
[1642455847137,8.7,137.24,137.13,40.81561366]
[1642455847338,10.9343,137.22,137.13,40.81561366]
[1642455847939,10.9343,137.22,137.14,10.935]
[1642455848141,8.7,137.24,137.14,11.185]
[1642455848340,8.7,137.24,137.14,10.935]
[1642455848542,8.7,137.24,137.15,0.25]
[1642455848739,8.7,137.24,137.14,4.4168546]
[1642455848941,8.7,137.24,137.14,29.3324546]
[1642455849339,8.7,137.24,137.14,35.3324546]
[1642455849540,19.6325,137.24,137.17,10.9323]
[1642455849742,19.6325,137.24,137.18,40.29312186]
[1642455850040,59.75205734,137.24,137.18,40.29312186]
[1642455850241,19.6325,137.24,137.18,40.29312186]
[1642455850440,25.6325,137.24,137.18,39.79312186]
[1642455851540,25.6325,137.24,137.14,24.9156]
[1642455851843,25.6325,137.24,137.14,35.851]
[1642455852540,25.6325,137.24,137.15,44.81237335]
[1642455853342,25.6325,137.24,137.14,24.9156]
[1642455853543,25.6325,137.24,137.12,0.21189703]
[1642455853746,27.38869958,137.24,137.12,0.21189703]
[1642455853943,8.7,137.23,137.12,0.21189703]
[1642455854243,8.7,137.22,137.12,0.21189703]
[1642455854445,10.9401,137.2,137.12,0.21189703]
[1642455854646,35.28128145,137.18,137.12,0.21189703]
[1642455854845,8.7,137.17,137.12,0.21189703]
[1642455855044,8.7,137.16,137.12,0.21189703]
[1642455855243,8.7,137.18,137.12,0.21189703]
[1642455855645,10.9394,137.17,137.12,0.21189703]
[1642455855947,8.7,137.18,137.12,0.21189703]
[1642455856146,8.7,137.18,137.13,43.49727793]
[1642455856747,8.7,137.23,137.14,0.25]
[1642455857147,8.7,137.26,137.16,10.9325]
[1642455857347,8.7,137.26,137.17,36.83153084]
[1642455857547,19.6314,137.26,137.17,36.33153084]
[1642455857751,19.6314,137.26,137.17,35.83153084]
[1642455858550,8.7,137.31,137.19,124.0]
[1642455858748,8.7,137.33,137.2,72.14]
[1642455858951,8.7,137.33,137.2,0.25]
[1642455859152,8.7,137.33,137.2,6.51]
[1642455859450,8.7,137.33,137.21,38.69598039]
[1642455859650,8.7,137.33,137.22,71.89]
[1642455859851,8.7,137.33,137.23,10.9275]
[1642455860450,53.36676919,137.35,137.24,41.67978395]
[1642455860650,10.9252,137.33,137.24,41.67978395]
[1642455861250,10.9252,137.33,137.26,10.9258]
[1642455862051,10.9252,137.33,137.27,40.47394948]
[1642455863051,10.9252,137.33,137.27,51.39904948]
[1642455863354,37.62103565,137.38,137.27,51.39904948]
[1642455863554,1.20703565,137.38,137.27,51.39904948]
[1642455863752,1.20703565,137.38,137.27,51.65904948]
[1642455864154,1.20703565,137.38,137.27,100.27984948]
[1642455864352,12.12843565,137.38,137.27,100.27984948]
[1642455865052,12.12843565,137.38,137.27,100.01984948]
[1642455868154,12.12843565,137.38,137.27,107.86084948]
[1642455868356,12.12843565,137.38,137.28,0.25]
[1642455868555,10.9201,137.4,137.32,43.30283653]
[1642455868756,8.7,137.43,137.32,51.57983653]
[1642455868955,8.7,137.43,137.33,46.1434]
[1642455869158,8.7,137.44,137.33,46.3934]
[1642455869356,335.67319934,137.46,137.33,46.1434]
[1642455869559,335.67319934,137.46,137.35,10.9184]
[1642455869757,10.9165,137.45,137.36,40.7968777]
[1642455870257,14.8251976,137.45,137.36,40.7968777]
[1642455870456,3.9086976,137.45,137.36,40.7968777]
[1642455870657,3.9086976,137.45,137.38,10.9154]
[1642455870856,3.9086976,137.45,137.38,17.0474]
[1642455871056,3.9086976,137.45,137.39,42.7699635]
[1642455871457,10.9135,137.48,137.39,42.7699635]
[1642455871664,8.7,137.49,137.39,43.0299635]
[1642455871857,10.9127,137.49,137.4,10.9133]
[1642455872656,8.9127,137.49,137.4,10.9133]
[1642455873263,8.7,137.55,137.41,0.25]
[1642455873558,4.00192119,137.48,137.44,10.9087]
[1642455873763,518.96086147,137.56,137.45,78.0]
[1642455873764,510.26086147,137.56,137.45,78.0]
[1642455874062,557.11466456,137.56,137.46,38.20059386]
[1642455874463,510.26086147,137.56,137.46,38.20059386]
[1642455874863,10.9083,137.55,137.46,38.20059386]
[1642455875268,21.36449958,137.55,137.46,38.20059386]
[1642455875467,35.33598163,137.54,137.46,38.20059386]
[1642455875868,37.09218121,137.54,137.46,38.20059386]
[1642455876068,10.9118,137.52,137.46,38.20059386]
[1642455876269,47.08935464,137.51,137.43,23.8478]
[1642455876470,48.84555422,137.51,137.42,23.6208]
[1642455876672,48.84555422,137.51,137.38,24.0657]
[1642455876876,1.75619958,137.5,137.35,8.7]
[1642455877071,8.7,137.49,137.31,8.7]
[1642455877271,47.24180632,137.48,137.33,10.9194]
[1642455877473,8.7,137.47,137.33,10.9194]
[1642455878072,10.45619958,137.47,137.33,10.9194]
[1642455878473,8.7,137.47,137.33,10.9194]
[1642455878678,10.9184,137.44,137.33,10.9194]
[1642455879275,8.7,137.47,137.34,0.25]
[1642455879479,8.7,137.47,137.37,10.9157]
[1642455880090,10.9157,137.45,137.38,35.07690966]
[1642455881792,10.9149,137.46,137.38,45.99220966]
[1642455882191,8.7,137.49,137.38,45.99220966]
[1642455882592,8.7,137.49,137.38,46.25220966]
[1642455882993,46.87401169,137.69,137.41,10.9121]
[1642455882994,8.7,137.53,137.41,10.9121]
[1642455883194,7.71881415,137.54,137.41,10.9121]
[1642455883594,8.7,137.53,137.41,10.9121]
[1642455883795,44.40823978,137.52,137.42,48.28290744]
[1642455883995,10.9116,137.51,137.42,48.28290744]
[1642455884598,19.6116,137.51,137.42,48.28290744]
[1642455884995,45.0270405,137.5,137.42,48.28290744]
[1642455885296,10.9149,137.48,137.42,48.28290744]
[1642455885495,47.87736274,137.47,137.42,48.28290744]
[1642455886094,8.7,137.49,137.42,48.28290744]
[1642455886497,10.9162,137.46,137.42,48.28290744]
[1642455886697,10.9162,137.46,137.36,47.0697]
[1642455887500,19.6162,137.46,137.36,47.0697]
[1642455887699,47.98891404,137.45,137.37,48.23693009]
[1642455887898,10.9205,137.43,137.37,48.23693009]
[1642455888100,43.47931078,137.42,137.37,48.23693009]
[1642455888501,79.88231078,137.42,137.35,22.5764]
[1642455888699,79.88231078,137.42,137.27,8.7]
[1642455888906,8.7,137.41,137.27,8.7]
[1642455889302,8.7,137.41,137.28,0.25]
[1642455889603,19.6209,137.41,137.28,48.71125741]
[1642455890600,19.6209,137.41,137.28,48.72125741]
[1642455890799,19.6209,137.41,137.28,120.61125741]
[1642455891702,19.6209,137.41,137.28,126.61125741]
[1642455891902,19.6209,137.41,137.31,10.9205]
[1642455892104,19.6209,137.41,137.32,48.49928507]
[1642455893602,19.6209,137.41,137.32,59.41938507]
[1642455895805,10.9209,137.41,137.32,59.41938507]
[1642455896805,10.9209,137.41,137.32,59.67938507]
[1642455897505,10.9178,137.42,137.32,59.67938507]
[1642455897907,45.0916,137.46,137.33,0.25]
[1642455898110,45.0916,137.46,137.36,10.9168]
[1642455898407,80.65075306,137.46,137.37,37.81809216]
[1642455898808,10.9171,137.43,137.37,37.81809216]
[1642455899011,36.3862,137.48,137.37,37.81809216]
[1642455899215,36.3862,137.48,137.37,46.26609216]
[1642455899812,77.663546,137.48,137.37,46.26609216]
[1642455900016,36.3862,137.48,137.37,118.15609216]
[1642455900217,10.9147,137.46,137.37,129.07249216]
[1642455900418,388.45259786,137.5,137.38,0.25]
[1642455901420,45.55356609,137.51,137.38,0.25]
[1642455901618,10.9123,137.49,137.41,10.9123]
[1642455901819,10.9123,137.49,137.42,43.96341318]
[1642455903523,10.9123,137.49,137.42,54.87581318]
[1642455903920,10.9123,137.49,137.42,43.96341318]
[1642455905522,1.66486914,137.51,137.43,71.89]
[1642455905922,1.66486914,137.51,137.43,72.15]
[1642455906143,48.68941596,137.57,137.43,72.15]
[1642455906348,8.7,137.57,137.44,0.25]
[1642455906545,10.9073,137.55,137.44,0.25]
[1642455906746,5.93425663,137.59,137.45,10.9102]
[1642455906945,5.93425663,137.59,137.45,17.5012]
[1642455907144,5.93425663,137.59,137.46,72.14]
[1642455907346,5.93425663,137.59,137.46,115.59217821]
[1642455907647,10.905,137.58,137.46,115.59217821]
[1642455907845,5.93425663,137.59,137.49,10.9052]
[1642455908045,5.93425663,137.59,137.5,71.89]
[1642455908246,1.65769949,137.63,137.5,72.4]
[1642455908447,1.65769949,137.63,137.5,95.249]
[1642455908647,47.31094831,137.63,137.51,40.31719971]
[1642455908849,10.903,137.61,137.52,10.9028]
[1642455909047,46.80434826,137.6,137.52,10.9028]
[1642455909248,46.80434826,137.6,137.51,40.31719971]
[1642455909449,1.65769949,137.63,137.56,8.4867732]
[1642455909450,8.7,137.62,137.56,8.4867732]
[1642455910047,36.3525,137.61,137.56,8.4867732]
[1642455910250,1.65769949,137.63,137.56,8.4867732]
[1642455910449,38.66175968,137.63,137.57,46.04121409]
[1642455910948,38.66175968,137.63,137.56,8.4867732]
[1642455911651,10.904,137.61,137.56,8.4867732]
[1642455912048,10.904,137.61,137.57,39.66719636]
[1642455912648,1.65769949,137.63,137.57,39.66719636]
[1642455912851,10.9018,137.62,137.57,39.66719636]
[1642455913049,1.65769949,137.63,137.57,39.66719636]
[1642455913249,8.7,137.66,137.57,39.66719636]
[1642455913850,8.7,137.69,137.57,39.66719636]
[1642455914550,10.8996,137.65,137.57,50.56829636]
[1642455914753,10.8996,137.65,137.62,4.2433866]
[1642455914951,6.06439994,137.64,137.62,8.4867732]
[1642455915250,45.0312,137.69,137.63,47.64321465]
[1642455917251,10.8987,137.68,137.63,47.64321465]
[1642455918352,5.93425663,137.7,137.63,47.64321465]
[1642455919151,90.55004509,137.71,137.63,47.64321465]
[1642455919552,10.8966,137.69,137.63,47.64321465]
[1642455920156,10.8966,137.69,137.66,4.2433866]
[1642455920353,10.8966,137.69,137.68,4.2433866]
[1642455920554,16.96099994,137.69,137.68,4.2433866]
[1642455921353,16.96099994,137.69,137.59,58.7637]
[1642455922054,16.96099994,137.69,137.6,41.08397819]
[1642455922254,16.96099994,137.69,137.6,41.33397819]
[1642455922255,44.896145,137.68,137.6,41.33397819]
[1642455922455,10.8966,137.69,137.6,41.33397819]
[1642455922856,10.8966,137.69,137.6,41.59397819]
[1642455923459,10.8966,137.69,137.61,10.8977]
[1642455923856,10.8966,137.69,137.61,11.1577]
[1642455925358,10.8957,137.7,137.63,10.8959]
[1642455926362,10.8957,137.7,137.64,36.01287865]
[1642455928064,42.1595836,137.69,137.64,36.01287865]
[1642455928265,10.8957,137.7,137.64,36.01287865]
[1642455929169,57.24031119,137.7,137.64,36.01287865]
[1642455931074,10.8957,137.7,137.64,36.01287865]
[1642455932614,10.8957,137.7,137.61,23.3993]
[1642455932816,1.75619958,137.69,137.61,23.3993]
[1642455933113,10.9004,137.66,137.46,3.78512683]
[1642455933515,10.9004,137.66,137.47,119.7769]
[1642455933713,10.9004,137.66,137.58,40.4747025]
[1642455936415,2.04268813,137.62,137.58,40.4747025]
[1642455937417,52.48471399,137.62,137.55,24.9332]
[1642455937618,2.04268813,137.61,137.55,24.9332]
[1642455938420,2.04268813,137.61,137.54,39.62995051]
[1642455938718,2.04268813,137.58,137.54,39.62995051]
[1642455938920,12.94808813,137.58,137.54,39.62995051]
[1642455939419,2.04268813,137.58,137.54,39.62995051]
[1642455939619,4.07985318,137.61,137.55,53.0]
[1642455939819,4.07985318,137.61,137.55,53.25]
[1642455940619,4.07985318,137.61,137.55,0.25]
[1642455941221,14.98245318,137.61,137.55,0.25]
[1642455941420,4.07985318,137.61,137.55,0.25]
[1642455941820,4.07985318,137.61,137.55,11.1526]
[1642455942220,41.99543865,137.63,137.55,11.4126]
[1642455942821,40.42525318,137.64,137.55,11.4126]
[1642455943020,40.42525318,137.64,137.55,11.1526]
[1642455943222,4.07985318,137.62,137.55,11.1526]
[1642455943421,14.98175318,137.62,137.55,11.4126]
[1642455943650,4.07985318,137.62,137.55,11.4126]
[1642455943847,4.07985318,137.62,137.55,17.4126]
[1642455944447,5.93425663,137.65,137.55,17.4126]
[1642455944448,4.07985318,137.64,137.56,71.89]
[1642455944650,10.9011,137.63,137.57,54.77661184]
[1642455944848,10.9011,137.63,137.57,55.28661184]
[1642455946453,14.98095318,137.63,137.57,55.28661184]
[1642455946854,4.07985318,137.63,137.57,55.28661184]
[1642455947254,4.07985318,137.63,137.54,10.9029]
[1642455948454,4.07985318,137.62,137.54,10.9029]
[1642455948657,4.07985318,137.62,137.57,10.9005]
[1642455948858,4.07985318,137.62,137.55,47.97995966]
[1642455949456,4.07985318,137.63,137.55,47.97995966]
[1642455950457,4.07985318,137.61,137.55,47.97995966]
[1642455950658,4.07985318,137.61,137.55,58.88265966]
[1642455952058,4.07985318,137.61,137.56,0.25]
[1642455952259,4.07985318,137.61,137.57,10.9001]
[1642455952960,4.07985318,137.61,137.58,39.10852456]
[1642455953361,4.07985318,137.61,137.58,50.26892456]
[1642455953560,5.93425663,137.65,137.59,46.0]
[1642455953762,5.93425663,137.65,137.59,46.51]
[1642455953963,5.93425663,137.65,137.59,46.25]
[1642455954161,5.93425663,137.65,137.59,46.26]
[1642455954360,5.93425663,137.65,137.6,0.25]
[1642455954560,5.93425663,137.65,137.6,10.8977]
[1642455954959,5.93425663,137.65,137.61,46.83853698]
[1642455955160,5.93425663,137.68,137.61,46.83853698]
[1642455956162,10.8987,137.66,137.61,46.83853698]
[1642455956361,5.93425663,137.68,137.61,57.73613698]
[1642455957363,16.83195663,137.68,137.61,46.83853698]
[1642455958462,36.62145815,137.67,137.61,46.83853698]
[1642455958662,10.9,137.66,137.61,46.83853698]
[1642455959463,10.9,137.66,137.59,47.7602]
[1642455959763,10.9,137.66,137.57,10.9011]
[1642455959963,10.9,137.66,137.55,24.0954]
[1642455960163,10.9,137.66,137.55,47.9826]